fUSD/lending_fUSD_20260122
["ID","MTS","AMOUNT","RATE_DAILY","PERIOD"]
[403064552,1769117438630,-500.0,0.00016438,2]
[403064553,1769117438640,-500.0,0.00016438,2]
[403064554,1769117438650,-500.0,0.00016438,2]
[403064555,1769117438659,-500.0,0.00016438,2]
[403064556,1769117438668,-629.51547192,0.00016438,2]
[403064557,1769117438677,-629.51547192,0.00016438,2]
[403064558,1769117438687,-629.51547192,0.00016438,2]
[403064559,1769117438695,-629.51547192,0.00016438,2]
[403064560,1769117438704,-629.51547192,0.00016438,2]
[403064561,1769117438714,-629.51547192,0.00016438,2]
[403064562,1769117438724,-629.51547192,0.00016438,2]
[403064563,1769117438733,-629.51547192,0.00016438,2]
[403064564,1769117438742,-629.51547192,0.00016438,2]
[403064565,1769117438751,-629.51547192,0.00016438,2]
[403064566,1769117438760,-629.51547192,0.00016438,2]
[403064567,1769117438769,-629.51547192,0.00016438,2]
[403064568,1769117438778,-629.51547192,0.00016438,2]
[403064569,1769117438787,-629.51547192,0.00016438,2]
[403064570,1769117438796,-629.51547192,0.00016438,2]
[403064571,1769117438806,-629.51547192,0.00016438,2]
[403064572,1769117438815,-629.51547192,0.00016438,2]
[403064573,1769117438824,-629.51547192,0.00016438,2]
[403064574,1769117438833,-629.51547192,0.00016438,2]
[403064575,1769117438842,-629.51547192,0.00016438,2]
[403064576,1769117438851,-629.51547192,0.00016438,2]
[403064577,1769117438860,-629.51547192,0.00016438,2]
[403064578,1769117438869,-629.51547192,0.00016438,2]
[403064579,1769117438879,-629.51547192,0.00016438,2]
[403064580,1769117438888,-629.51547192,0.00016438,2]
[403064581,1769117438898,-629.51547192,0.00016438,2]
[403064582,1769117438907,-629.51547192,0.00016438,2]
[403064583,1769117438916,-629.51547192,0.00016438,2]
[403064584,1769117438926,-629.51547192,0.00016438,2]
[403064585,1769117438935,-629.51547192,0.00016438,2]
[403064586,1769117438944,-629.51547192,0.00016438,2]
[403064587,1769117438953,-629.51547192,0.00016438,2]
[403064588,1769117438962,-629.51547192,0.00016438,2]
[403064589,1769117438972,-629.51547192,0.00016438,2]
[403064590,1769117438981,-629.51547192,0.00016438,2]
[403064591,1769117438991,-629.51547192,0.00016438,2]
[403064592,1769117439000,-629.51547192,0.00016438,2]
[403064593,1769117439009,-629.51547192,0.00016438,2]
[403064594,1769117439019,-629.51547192,0.00016438,2]
[403064595,1769117439029,-629.51547192,0.00016438,2]
[403064596,1769117439041,-629.51547192,0.00016438,2]
[403064597,1769117439050,-629.51547192,0.00016438,2]
[403064598,1769117439060,-306.26628506,0.00016438,2]
[403064599,1769117439072,-323.24918686,0.00016438,2]
[403064600,1769117439083,-109.82248158,0.00016438,2]
[403064601,1769117439094,-519.69299032,0.00016438,2]
[403064602,1769117439103,-500.0,0.00016438,2]
[403064603,1769117439116,-1989.4,0.0001649,2]
[403064604,1769117439125,-151.0,0.0001649,2]
[403064605,1769117439134,-151.0,0.0001649,2]
[403064606,1769117439143,-151.0,0.0001649,2]
[403064607,1769117439152,-151.0,0.0001649,2]
[403064608,1769117439162,-151.0,0.0001649,2]
[403064609,1769117439172,-151.0,0.0001649,2]
[403064610,1769117439181,-151.0,0.0001649,2]
[403064611,1769117439190,-151.0,0.0001649,2]
[403064612,1769117439200,-151.0,0.0001649,2]
[403064613,1769117439209,-151.0,0.0001649,2]
[403064614,1769117439220,-151.0,0.0001649,2]
[403064615,1769117439230,-151.0,0.0001649,2]
[403064616,1769117439239,-151.0,0.0001649,2]
[403064617,1769117439249,-151.0,0.0001649,2]
[403064618,1769117439259,-151.0,0.0001649,2]
[403064619,1769117439268,-151.0,0.0001649,2]
[403064620,1769117439281,-151.0,0.0001649,2]
[403064621,1769117439300,-151.0,0.0001649,2]
[403064622,1769117439311,-151.0,0.0001649,2]
[403064623,1769117439321,-151.0,0.0001649,2]
[403064624,1769117439330,-4158.6343992,0.000165,2]
[403064625,1769117439342,-650.0,0.000165,2]
[403064626,1769117439455,-12750.3369008,0.000165,2]
[403064627,1769117439465,-1000.0,0.000165,2]
[403064628,1769117439475,-19925.92324381,0.00016515,2]
[403064629,1769117439485,-414.66,0.00016627,2]
[403064630,1769117439728,-215.0,0.00016641,2]
[403064631,1769117439743,-1457.0,0.00016674,2]
[403064632,1769117439752,-19925.92324381,0.00016691,2]
[403064633,1769117439761,-994.0,0.00016708,2]
[403064634,1769117439771,-500.0,0.00016712,2]
[403064635,1769117439780,-1989.4,0.00016858,2]
[403064636,1769117439788,-19925.92324381,0.00016868,2]
[403064637,1769117439797,-253.97,0.00016986,2]
[403064638,1769117439807,-19925.92324381,0.00017044,2]
[403064639,1769117439816,-165.19,0.00017208,2]
[403064640,1769117439825,-195.0,0.00017213,2]
[403064641,1769117439834,-300.0,0.00017213,2]
[403064642,1769117439843,-300.0,0.00017218,2]
[403064643,1769117439859,-2500.0,0.00017218,2]
[403064644,1769117439879,-300.0,0.00017219,2]
[403064645,1769117439891,-250.0,0.00017219,2]
[403064646,1769117439900,-5074.53355401,0.00017219,2]
[403064647,1769117439909,-689.93257127,0.00017219,2]
[403064648,1769117439918,-185.66149566,0.00017219,2]
[403064649,1769117439927,-19925.92324381,0.00017221,2]
[403064650,1769117439936,-1989.4,0.00017279,2]
[403064651,1769117439945,-250.0,0.00017285,2]
[403064652,1769117439955,-48401.5576648,0.00017289,2]
[403064653,1769117439964,-198.0,0.00017315,2]
[403064654,1769117439974,-420.0,0.00017315,2]
[403064655,1769117439983,-19925.92324381,0.00017397,2]
[403064656,1769117439991,-1680.0,0.00017402,2]
[403064657,1769117440001,-414.66,0.00017419,2]
[403064658,1769117440011,-307.0,0.00017459,2]
[403064659,1769117440020,-3302.94097839,0.000175,3]
[403064660,1769117440030,-1604.04104564,0.000175,2]
[403064661,1769117440046,-8671.83004148,0.0001754,2]
[403064662,1769117440055,-850.0,0.00017543,2]
[403064663,1769117440065,-510.11481069,0.00017555,2]
[403064664,1769117440074,-1989.4,0.00017564,2]
[403064665,1769117440084,-4669.76185948,0.00017573,2]
[403064666,1769117440095,-19925.92324381,0.00017574,2]
[403064667,1769117440104,-4669.76185947,0.00017609,2]
[403064668,1769117440117,-187.13,0.00017634,2]
[403064669,1769117440127,-4669.76185947,0.00017646,2]
[403064670,1769117440139,-585.77072382,0.00017673,2]
[403064671,1769117440149,-215.05133739,0.00017673,2]
[403064672,1769117440159,-514.13913965,0.00017673,2]
[403064673,1769117440168,-500.0,0.00017673,2]
[403064674,1769117440179,-500.0,0.00017673,2]
[403064675,1769117440188,-500.0,0.00017673,2]
[403064676,1769117440198,-490.42703734,0.00017673,2]
[403064677,1769117440207,-546.39725778,0.00017673,2]
[403064678,1769117440218,-500.0,0.00017673,2]
[403064679,1769117440229,-2000.0,0.00017673,2]
[403064680,1769117440242,-4669.76185947,0.00017682,2]
[403064681,1769117440254,-150.0,0.00017699,2]
[403064682,1769117440263,-443.0,0.00017699,2]
[403064683,1769117440273,-500.0,0.00017699,2]
[403064684,1769117440284,-500.0,0.00017699,2]
[403064685,1769117440294,-150.0,0.00017699,2]
[403064686,1769117440303,-500.0,0.00017699,2]
[403064687,1769117440313,-500.0,0.00017699,2]
[403064688,1769117440322,-500.0,0.00017699,2]
[403064689,1769117440331,-500.0,0.00017699,2]
[403064690,1769117440350,-500.0,0.00017699,2]
[403064691,1769117440360,-150.0,0.00017699,2]
[403064692,1769117440370,-500.0,0.00017699,2]
[403064693,1769117440379,-500.0,0.00017699,2]
[403064694,1769117440389,-150.0,0.00017699,2]
[403064695,1769117440399,-15333.91529401,0.000177,2]
[403064696,1769117440410,-200.0,0.00017714,2]
[403064697,1769117440420,-4669.76185947,0.00017718,2]
[403064698,1769117440430,-1989.4,0.0001774,2]
[403064699,1769117440440,-19925.92324381,0.0001775,2]
[403064700,1769117440451,-150.0,0.00017754,2]
[403064701,1769117440460,-443.0,0.00017754,2]
[403064702,1769117440474,-500.0,0.00017754,2]
[403064703,1769117440484,-500.0,0.00017754,2]
[403064704,1769117440494,-500.0,0.00017754,2]
[403064705,1769117440503,-500.0,0.00017754,2]
[403064706,1769117440513,-500.0,0.00017754,2]
[403064707,1769117440522,-500.0,0.00017754,2]
[403064708,1769117440532,-500.0,0.00017754,2]
[403064709,1769117440542,-500.0,0.00017754,2]
[403064710,1769117440552,-500.0,0.00017754,2]
[403064711,1769117440562,-150.0,0.00017754,2]
[403064712,1769117440572,-4669.76185947,0.00017755,2]
[403064713,1769117440583,-4669.76185947,0.00017791,2]
[403064714,1769117440593,-150.0,0.00017808,2]
[403064715,1769117440603,-500.0,0.00017808,2]
[403064716,1769117440613,-150.0,0.00017808,2]
[403064717,1769117440623,-150.0,0.00017808,2]
[403064718,1769117440632,-500.0,0.00017808,2]
[403064719,1769117440642,-500.0,0.00017808,2]
[403064720,1769117440651,-500.0,0.00017808,2]
[403064721,1769117440661,-500.0,0.00017808,2]
[403064722,1769117440671,-150.0,0.00017809,2]
[403064723,1769117440680,-443.0,0.00017809,2]
[403064724,1769117440690,-500.0,0.00017809,2]
[403064725,1769117440704,-500.0,0.00017809,2]
[403064726,1769117440714,-500.0,0.00017809,2]
[403064727,1769117440724,-500.0,0.00017809,2]
[403064728,1769117440734,-500.0,0.00017809,2]
[403064729,1769117440744,-500.0,0.00017809,2]
[403064730,1769117440754,-500.0,0.00017809,2]
[403064731,1769117440764,-500.0,0.00017809,2]
[403064732,1769117440774,-202.04314772,0.00017809,2]
[403064733,1769117440783,-150.0,0.00017809,2]
[403064734,1769117440793,-41432.07686485,0.00017818,2]
[403064735,1769117440803,-4669.76185947,0.00017827,2]
[403064736,1769117440812,-1000.32393849,0.0001786,2]
[403064737,1769117440822,-150.0,0.00017863,2]
[403064738,1769117440832,-500.0,0.00017863,2]
[403064739,1769117440841,-150.0,0.00017863,2]
[403064740,1769117440851,-500.0,0.00017863,2]
[403064741,1769117440860,-500.0,0.00017863,2]
[403064742,1769117440870,-500.0,0.00017863,2]
[403064743,1769117440879,-500.0,0.00017863,2]
[403064744,1769117440889,-150.0,0.00017863,2]
[403064745,1769117440903,-443.0,0.00017863,2]
[403064746,1769117440913,-500.0,0.00017863,2]
[403064747,1769117440923,-500.0,0.00017863,2]
[403064748,1769117440933,-184.08570023,0.00017863,2]
[403064749,1769117440942,-500.0,0.00017863,2]
[403064750,1769117440952,-500.0,0.00017863,2]
[403064751,1769117440962,-500.0,0.00017863,2]
[403064752,1769117440973,-500.0,0.00017863,2]
[403064753,1769117440983,-500.0,0.00017863,2]
[403064754,1769117440996,-4669.76185947,0.00017864,2]
[403064755,1769117441016,-4686.76452028,0.000179,2]
[403064756,1769117441032,-26682.59430966,0.000179,2]
[403064757,1769117441045,-4669.76185947,0.000179,2]
[403064758,1769117441056,-25000.0,0.000179,3]
[403064759,1769117441065,-2497.40920944,0.000179,2]
[403064760,1769117441076,-15495.85446133,0.000179,2]
[403064761,1769117441085,-195.5815019,0.000179,3]
[403064762,1769117441095,-6848.16141373,0.000179,2]
[403064763,1769117441106,-150.0,0.00017918,2]
[403064764,1769117441120,-500.0,0.00017918,2]
[403064765,1769117441130,-150.0,0.00017918,2]
[403064766,1769117441140,-500.0,0.00017918,2]
[403064767,1769117441150,-450.0,0.00017918,2]
[403064768,1769117441161,-500.0,0.00017918,2]
[403064769,1769117441170,-500.0,0.00017918,2]
[403064770,1769117441180,-252.13388248,0.00017918,2]
[403064771,1769117441190,-443.0,0.00017918,2]
[403064772,1769117441200,-500.0,0.00017918,2]
[403064773,1769117441209,-500.0,0.00017918,2]
[403064774,1769117441220,-500.0,0.00017918,2]
[403064775,1769117441230,-500.0,0.00017918,2]
[403064776,1769117441240,-500.0,0.00017918,2]
[403064777,1769117441249,-500.0,0.00017918,2]
[403064778,1769117441259,-504.31209955,0.00017918,2]
[403064779,1769117441269,-19925.92324381,0.00017927,2]
[403064780,1769117441279,-150.0,0.00017972,2]
[403064781,1769117441289,-500.0,0.00017972,2]
[403064782,1769117441299,-205.46005612,0.00017972,2]
[403064783,1769117441309,-500.0,0.00017972,2]
[403064784,1769117441322,-500.0,0.00017972,2]
[403064785,1769117441332,-500.0,0.00017972,2]
[403064786,1769117441342,-30935.0,0.00017973,2]
[403064787,1769117441352,-443.0,0.00017973,2]
[403064788,1769117441362,-500.0,0.00017973,2]
[403064789,1769117441371,-500.0,0.00017973,2]
[403064790,1769117441381,-500.0,0.00017973,2]
[403064791,1769117441391,-500.0,0.00017973,2]
[403064792,1769117441401,-500.0,0.00017973,2]
[403064793,1769117441410,-331.5474637,0.00017973,2]
[403064794,1769117441421,-150.0,0.00017973,2]
[403064795,1769117441431,-150.0,0.00017973,2]
[403064796,1769117441441,-319.34433213,0.00017999,2]
[403064797,1769117441451,-11866.44539761,0.00017999,2]
[403064798,1769117441461,-500.0,0.00017999,2]
[403064799,1769117441472,-500.0,0.00017999,2]
[403064800,1769117441482,-248.53597187,0.00017999,2]
[403064801,1769117441492,-500.0,0.00017999,2]
[403064802,1769117441502,-453.36489424,0.00017999,2]
[403064803,1769117441516,-500.0,0.00017999,2]
[403064804,1769117441526,-500.0,0.00017999,2]
[403064805,1769117441535,-500.0,0.00017999,2]
[403064806,1769117441545,-445.26899368,0.00017999,2]
[403064807,1769117441555,-500.0,0.00017999,2]
[403064808,1769117441564,-500.0,0.00017999,2]
[403064809,1769117441574,-217.26339465,0.00017999,2]
[403064810,1769117441583,-500.0,0.00017999,2]
[403064811,1769117441593,-173.9751803,0.00017999,2]
[403064812,1769117441603,-200.02783996,0.00017999,2]
[403064813,1769117441613,-3757699.71687373,0.00018,2]
[403064814,1769117442049,-548.92585976,0.00018,2]
[403064815,1769117442574,-495.927763,0.00018,2]
[403064816,1769117442586,-15611.21622551,0.00018,2]
[403064817,1769117442712,-20900.0,0.00018,2]
[403064818,1769117442758,-3228.08216139,0.00018,2]
[403064833,1769117444055,-151.0,0.00016219,2]
[403064834,1769117444065,-143.01433333,0.000179,2]
[403064835,1769117444230,-429.11400213,0.000179,2]
[403064836,1769117444240,-7224.59611013,0.00018,2]
[403064837,1769117444252,-647.87718311,0.00018,2]
[403064838,1769117444288,-1595.06612971,0.00018,2]
[403064839,1769117446522,-1404.26040629,0.00018,2]
[403064840,1769117446580,-643.80513405,0.00018,2]
[403064843,1769117519971,2780.3815,0.00015559,2]
[403064856,1769118151089,300.0,0.00014247,3]
[403064857,1769118160210,300.0,0.00014247,3]
[403064858,1769118175166,300.45,0.00014384,3]
[403064860,1769118313387,-299.7157863,0.00015671,3]
[403064861,1769118407662,-83.2842137,0.00015671,3]
[403064862,1769118420289,-233.36,0.000164,2]
[403064863,1769118420313,-600.0,0.00016401,2]
[403064864,1769118420340,-314.80722769,0.00016401,2]
[403064865,1769118420365,-336.32096552,0.00016402,2]
[403064866,1769118420390,-550.0,0.00016436,2]
[403064867,1769118420412,-500.0,0.00016437,2]
[403064868,1769118420434,-924.22,0.00016437,2]
[403064869,1769118420456,-500.0,0.00016437,2]
[403064870,1769118420478,-601.02997992,0.00016437,2]
[403064871,1769118420500,-319.34433213,0.00016437,2]
[403064872,1769118420522,-500.0,0.00016437,2]
[403064873,1769118420544,-500.0,0.00016437,2]
[403064874,1769118420927,-500.0,0.00016437,2]
[403064875,1769118420950,-500.0,0.00016437,2]
[403064876,1769118420972,-500.0,0.00016437,2]
[403064877,1769118420993,-600.0,0.00016458,2]
[403064878,1769118421015,-280.21079314,0.00016458,2]
[403064879,1769118421036,-1537.13,0.00016556,2]
[403064880,1769118421058,-200.0,0.00016615,2]
[403064881,1769118421081,-856.61,0.00016687,2]
[403064882,1769118421102,-2791.9,0.00016795,2]
[403064883,1769118421123,-322.6107,0.00016972,2]
[403064884,1769118421144,-174.61919141,0.00016972,2]
[403064885,1769118421166,-3210.0,0.00016972,2]
[403064886,1769118421187,-515.0,0.00016972,2]
[403064887,1769118421208,-151.0,0.00016972,2]
[403064888,1769118421230,-3240.0,0.00016982,2]
[403064889,1769118421251,-376.17,0.00017,2]
[403064890,1769118421272,-777.0,0.0001721,2]
[403064891,1769118421293,-300.0,0.00017238,2]
[403064892,1769118421315,-250.0,0.00017238,2]
[403064893,1769118421341,-467.0,0.00017245,2]
[403064894,1769118421363,-856.61,0.00017312,2]
[403064895,1769118421384,-924.22,0.00017396,2]
[403064896,1769118421407,-500.0,0.00017396,2]
[403064897,1769118421429,-500.0,0.00017396,2]
[403064898,1769118421449,-500.0,0.00017396,2]
[403064899,1769118421471,-500.00000017,0.00017396,2]
[403064900,1769118421492,-500.0,0.00017396,2]
[403064901,1769118421514,-238.79765204,0.00017396,2]
[403064902,1769118421644,300.0,0.00016436,2]
[403064903,1769118425297,150.0,0.00016766,2]
[403064904,1769118426604,151.0,0.00016962,2]
[403064905,1769118427221,151.0,0.00016962,2]
[403064906,1769118427823,151.0,0.00016962,2]
[403064907,1769118428599,151.0,0.00016962,2]
[403064908,1769118428922,200.0,0.00016962,2]
[403064909,1769118429229,151.0,0.00016962,2]
[403064910,1769118429831,151.0,0.00016962,2]
[403064911,1769118430477,151.0,0.00016962,2]
[403064912,1769118431082,151.0,0.00016962,2]
[403064913,1769118431351,250.0,0.00016962,2]
[403064914,1769118431955,250.0,0.00016962,2]
[403064915,1769118432188,151.0,0.00016962,2]
[403064916,1769118432390,3210.0,0.00016962,2]
[403064917,1769118432570,250.0,0.00016962,2]
[403064918,1769118432855,151.0,0.00016962,2]
[403064919,1769118433200,250.0,0.00016962,2]
[403064920,1769118433482,186.33234919,0.00016962,2]
[403064921,1769118433703,200.9409391,0.00016962,2]
[403064922,1769118434191,-250.0,0.00016962,2]
[403064923,1769118434214,-200.0,0.0001751,2]
[403064924,1769118434237,-300.0,0.00017554,2]
[403064925,1769118434259,-176.74378963,0.00017616,2]
[403064926,1769118434281,-4032.25310454,0.00017624,2]
[403064927,1769118434303,-2183.44699355,0.00017636,2]
[403064928,1769118434327,-4032.25310445,0.00017655,2]
[403064929,1769118434349,-2183.44699354,0.00017665,2]
[403064930,1769118434372,-645.0,0.00017671,2]
[403064931,1769118434396,-459.63746506,0.00017673,2]
[403064932,1769118434418,-500.0,0.00017673,2]
[403064933,1769118434439,-500.0,0.00017673,2]
[403064934,1769118434460,-500.0,0.00017673,2]
[403064935,1769118434483,-500.0,0.00017673,2]
[403064936,1769118434504,-414.92649477,0.00017673,2]
[403064937,1769118434525,-500.0,0.00017673,2]
[403064938,1769118434547,-500.0,0.00017673,2]
[403064939,1769118434568,-500.0,0.00017673,2]
[403064940,1769118434590,-500.0,0.00017673,2]
[403064941,1769118434612,-470.0,0.00017677,2]
[403064942,1769118434634,-2369.054,0.00017677,2]
[403064943,1769118434655,-220.577,0.00017677,2]
[403064944,1769118434677,-4032.25310445,0.00017685,2]
[403064945,1769118434699,-2183.44699354,0.00017695,2]
[403064946,1769118434720,-150.0,0.00017699,2]
[403064947,1769118434742,-500.0,0.00017699,2]
[403064948,1769118434762,-500.0,0.00017699,2]
[403064949,1769118434785,-151.0211484,0.00017699,2]
[403064950,1769118434806,-150.0,0.00017699,2]
[403064951,1769118434827,-500.0,0.00017699,2]
[403064952,1769118434848,-500.0,0.00017699,2]
[403064953,1769118434869,-150.0,0.00017699,2]
[403064954,1769118434892,-424.0,0.00017699,2]
[403064955,1769118434912,-500.0,0.00017699,2]
[403064956,1769118434933,-500.0,0.00017699,2]
[403064957,1769118434954,-500.0,0.00017699,2]
[403064958,1769118434976,-500.0,0.00017699,2]
[403064959,1769118434997,-500.0,0.00017699,2]
[403064960,1769118435019,-150.0,0.00017699,2]
[403064961,1769118435041,-500.0,0.00017699,2]
[403064962,1769118435062,-500.0,0.00017699,2]
[403064963,1769118435085,-150.0,0.00017699,2]
[403064964,1769118435106,-150.0,0.00017699,2]
[403064965,1769118435129,-500.0,0.00017699,2]
[403064966,1769118435151,-150.0,0.00017699,2]
[403064967,1769118435172,-150.0,0.00017699,2]
[403064968,1769118435194,-500.0,0.00017699,2]
[403064969,1769118435216,-500.0,0.00017699,2]
[403064970,1769118435239,-500.0,0.00017699,2]
[403064971,1769118435261,-150.0,0.00017699,2]
[403064972,1769118435283,-150.0,0.00017699,2]
[403064973,1769118435305,-248.53597187,0.00017715,2]
[403064974,1769118435329,-200.02783996,0.00017715,2]
[403064975,1769118435351,-500.0,0.00017715,2]
[403064976,1769118435374,-500.0,0.00017715,2]
[403064977,1769118435399,-500.0,0.00017715,2]
[403064978,1769118435421,-500.0,0.00017715,2]
[403064979,1769118435443,-453.36489424,0.00017715,2]
[403064980,1769118435465,-500.0,0.00017715,2]
[403064981,1769118435488,-500.0,0.00017715,2]
[403064982,1769118435512,-500.0,0.00017715,2]
[403064983,1769118435536,-217.26339465,0.00017715,2]
[403064984,1769118435560,-445.26899368,0.00017715,2]
[403064985,1769118435582,-500.0,0.00017715,2]
[403064986,1769118435608,-500.0,0.00017715,2]
[403064987,1769118435634,-500.0,0.00017715,2]
[403064988,1769118435659,-500.0,0.00017715,2]
[403064989,1769118435685,-500.0,0.00017715,2]
[403064990,1769118435709,-500.0,0.00017715,2]
[403064991,1769118435735,-500.0,0.00017715,2]
[403064992,1769118435761,-500.0,0.00017715,2]
[403064993,1769118435787,-500.0,0.00017715,2]
[403064994,1769118435819,-500.0,0.00017715,2]
[403064995,1769118435844,-500.0,0.00017715,2]
[403064996,1769118435868,-500.0,0.00017715,2]
[403064997,1769118435895,-500.0,0.00017715,2]
[403064998,1769118435921,-409.93454553,0.00017715,2]
[403064999,1769118435945,-500.0,0.00017715,2]
[403065000,1769118435971,-500.0,0.00017715,2]
[403065001,1769118435995,-500.0,0.00017715,2]
[403065002,1769118436027,-500.0,0.00017715,2]
[403065003,1769118436052,-500.0,0.00017715,2]
[403065004,1769118436077,-500.0,0.00017715,2]
[403065005,1769118436102,-500.0,0.00017715,2]
[403065006,1769118436127,-500.0,0.00017715,2]
[403065007,1769118436151,-500.0,0.00017715,2]
[403065008,1769118436181,-500.0,0.00017715,2]
[403065009,1769118436206,-500.0,0.00017715,2]
[403065010,1769118436232,-500.0,0.00017715,2]
[403065011,1769118436257,-500.0,0.00017715,2]
[403065012,1769118436284,-500.0,0.00017715,2]
[403065013,1769118436310,-500.0,0.00017715,2]
[403065014,1769118436340,-500.0,0.00017715,2]
[403065015,1769118436367,-500.0,0.00017715,2]
[403065016,1769118436394,-500.0,0.00017715,2]
[403065017,1769118436418,-500.0,0.00017715,2]
[403065018,1769118436443,-500.0,0.00017715,2]
[403065019,1769118436471,-500.0,0.00017715,2]
[403065020,1769118436495,-500.0,0.00017715,2]
[403065021,1769118436520,-500.0,0.00017715,2]
[403065022,1769118436840,-500.0,0.00017715,2]
[403065023,1769118436866,-500.0,0.00017715,2]
[403065024,1769118436893,-500.0,0.00017715,2]
[403065025,1769118436917,-500.0,0.00017715,2]
[403065026,1769118436942,-500.0,0.00017715,2]
[403065027,1769118436966,-344.36978457,0.00017715,2]
[403065028,1769118436991,-500.0,0.00017715,2]
[403065029,1769118437017,-500.0,0.00017715,2]
[403065030,1769118437042,-500.0,0.00017715,2]
[403065031,1769118437068,-500.0,0.00017715,2]
[403065032,1769118437093,-500.0,0.00017715,2]
[403065033,1769118437117,-500.0,0.00017715,2]
[403065034,1769118437142,-500.0,0.00017715,2]
[403065035,1769118437169,-500.0,0.00017715,2]
[403065036,1769118437195,-500.0,0.00017715,2]
[403065037,1769118437219,-500.0,0.00017715,2]
[403065038,1769118437246,-500.0,0.00017715,2]
[403065039,1769118437268,-173.9751803,0.00017715,2]
[403065040,1769118437294,-333.12131758,0.00017715,2]
[403065041,1769118437333,-500.0,0.00017715,2]
[403065042,1769118437363,-500.0,0.00017715,2]
[403065043,1769118437395,-500.0,0.00017715,2]
[403065044,1769118437422,-500.0,0.00017715,2]
[403065045,1769118437448,-500.0,0.00017715,2]
[403065046,1769118437475,-500.0,0.00017715,2]
[403065047,1769118437501,-500.0,0.00017715,2]
[403065048,1769118437526,-502.72610328,0.00017715,2]
[403065049,1769118437555,-151442.10672669,0.00017716,2]
[403065062,1769118632187,-272.85182406,0.00016437,2]
[403065063,1769118632200,-227.14817594,0.00016437,2]
[403065064,1769118632209,-216.34,0.0001685,2]
[403065065,1769118632219,-1701.16,0.00016879,2]
[403065066,1769118632228,-550.0,0.00016961,2]
[403065067,1769118632237,-300.0,0.00016961,2]
[403065068,1769118632247,-300.0,0.00016961,2]
[403065069,1769118632258,-1200.0,0.00016961,2]
[403065070,1769118632268,-300.0,0.00016961,2]
[403065071,1769118632278,-673.59,0.00016962,2]
[403065072,1769118632287,-250.0,0.00016962,2]
[403065073,1769118632296,-854.2589148,0.00016962,2]
[403065074,1769118632306,-250.0,0.00016962,2]
[403065075,1769118632316,-250.0,0.00016962,2]
[403065076,1769118632325,-138.50290926,0.00016962,2]
[403065077,1769118632337,-111.49709074,0.00016962,2]
[403065078,1769118632346,-250.0,0.00016962,2]
[403065079,1769118632357,-243.31650682,0.00016962,2]
[403065080,1769118632368,-6.68349318,0.00016962,2]
[403065081,1769118632380,-500.0,0.00016962,2]
[403065082,1769118632395,-500.0,0.00016962,2]
[403065083,1769118632407,-500.0,0.00016962,2]
[403065084,1769118632416,-200.0,0.00016962,2]
[403065085,1769118632427,-484.26721504,0.00016962,2]
[403065086,1769118632438,-15.73278496,0.00016962,2]
[403065087,1769118632448,-500.0,0.00016962,2]
[403065088,1769118632459,-500.0,0.00016962,2]
[403065089,1769118632468,-500.0,0.00016962,2]
[403065090,1769118632478,-500.0,0.00016962,2]
[403065091,1769118632487,-500.0,0.00016962,2]
[403065092,1769118632496,-200.0,0.00016962,2]